[Event "Late-Titled-Tuesday-Blitz-February-27-2024"]
[Site "Chess.com"]
[Date "2024.02.27"]
[Round "7"]
[White "ukchessbomber"]
[Black "GilbertoHernandezAmura"]
[Result "1-0"]
[WhiteElo "2643"]
[BlackElo "2449"]
[TimeControl "180+1"]
[EndTime "15:17:42 PST"]
[Termination "ukchessbomber won by resignation"]

1. a4 {[%clk 0:03:00.6]} 1... a5 {[%clk 0:02:58.5]} 2. Nf3 {[%clk 0:03:00.8]}
2... Nf6 {[%clk 0:02:58.8]} 3. b3 {[%clk 0:03:01]} 3... d6 {[%clk 0:02:57.8]} 4.
d4 {[%clk 0:03:00.7]} 4... Bg4 {[%clk 0:02:53.1]} 5. Nbd2 {[%clk 0:03:00.2]}
5... Nc6 {[%clk 0:02:51.4]} 6. h3 {[%clk 0:02:59.7]} 6... Bh5 {[%clk 0:02:51.4]}
7. g4 {[%clk 0:02:59.8]} 7... Bg6 {[%clk 0:02:51.8]} 8. e3 {[%clk 0:03:00.5]}
8... e5 {[%clk 0:02:51.9]} 9. Bb2 {[%clk 0:02:58.9]} 9... exd4 {[%clk
0:02:43.4]} 10. Nxd4 {[%clk 0:02:58.2]} 10... Nxd4 {[%clk 0:02:37.5]} 11. Bxd4
{[%clk 0:02:59.1]} 11... Be7 {[%clk 0:02:37.2]} 12. Bg2 {[%clk 0:02:59.4]} 12...
c6 {[%clk 0:02:35.4]} 13. f4 {[%clk 0:02:59.4]} 13... h6 {[%clk 0:02:29.7]} 14.
O-O {[%clk 0:02:51.8]} 14... d5 {[%clk 0:02:24.9]} 15. f5 {[%clk 0:02:45.4]}
15... Bh7 {[%clk 0:02:24.7]} 16. e4 {[%clk 0:02:45.4]} 16... dxe4 {[%clk
0:02:22.3]} 17. Nxe4 {[%clk 0:02:46.3]} 17... Nxe4 {[%clk 0:02:16.8]} 18. Bxe4
{[%clk 0:02:45]} 18... O-O {[%clk 0:02:12.7]} 19. Qd3 {[%clk 0:02:26.2]} 19...
Bf6 {[%clk 0:02:09.3]} 20. Rad1 {[%clk 0:02:21.9]} 20... Re8 {[%clk 0:02:06.2]}
21. Rfe1 {[%clk 0:02:21.6]} 21... Bxd4+ {[%clk 0:01:59.8]} 22. Qxd4 {[%clk
0:02:22.5]} 22... Qh4 {[%clk 0:02:00.2]} 23. Qd3 {[%clk 0:01:50.3]} 23... Rad8
{[%clk 0:01:55.5]} 24. Qf3 {[%clk 0:01:49.9]} 24... h5 {[%clk 0:01:50.5]} 25.
Kg2 {[%clk 0:01:49.3]} 25... Qg5 {[%clk 0:01:43.2]} 26. Rxd8 {[%clk 0:01:38.8]}
26... Rxd8 {[%clk 0:01:43.3]} 27. Rd1 {[%clk 0:01:39.5]} 27... hxg4 {[%clk
0:01:19.4]} 28. Rxd8+ {[%clk 0:01:29.5]} 28... Qxd8 {[%clk 0:01:20.3]} 29. hxg4
{[%clk 0:01:30.3]} 29... f6 {[%clk 0:01:19.9]} 30. Bd3 {[%clk 0:00:35.8]} 30...
Kf8 {[%clk 0:01:18.2]} 31. Qe3 {[%clk 0:00:35.7]} 31... Qd5+ {[%clk 0:01:03.6]}
32. Kf2 {[%clk 0:00:31.1]} 32... Bg8 {[%clk 0:00:51.8]} 33. Qb6 {[%clk
0:00:24.3]} 33... Qd6 {[%clk 0:00:42.6]} 34. Ke1 {[%clk 0:00:24.5]} 34... Bd5
{[%clk 0:00:42.2]} 35. Qxa5 {[%clk 0:00:17.9]} 35... Qg3+ {[%clk 0:00:41.4]} 36.
Kd1 {[%clk 0:00:14.7]} 36... Qxg4+ {[%clk 0:00:41]} 37. Kc1 {[%clk 0:00:15.3]}
37... Qg1+ {[%clk 0:00:36.6]} 38. Kb2 {[%clk 0:00:15.9]} 38... Qd4+ {[%clk
0:00:34.7]} 39. Ka2 {[%clk 0:00:14.4]} 39... b6 {[%clk 0:00:25.4]} 40. Qa8+
{[%clk 0:00:13.5]} 40... Kf7 {[%clk 0:00:25.8]} 41. Qb7+ {[%clk 0:00:13.8]}
41... Kg8 {[%clk 0:00:26.4]} 42. Qb8+ {[%clk 0:00:14.2]} 42... Kh7 {[%clk
0:00:26.5]} 43. Qh2+ {[%clk 0:00:14.8]} 43... Kg8 {[%clk 0:00:27]} 44. Qb8+
{[%clk 0:00:15.4]} 44... Kf7 {[%clk 0:00:26.8]} 45. Qc7+ {[%clk 0:00:15.5]}
45... Kg8 {[%clk 0:00:27.2]} 46. Qa7 {[%clk 0:00:12.1]} 46... Kh7 {[%clk
0:00:26.2]} 47. a5 {[%clk 0:00:10.3]} 47... Qa4+ {[%clk 0:00:26.2]} 48. Kb2
{[%clk 0:00:08.2]} 48... Qxa5 {[%clk 0:00:24.6]} 49. Qc7 {[%clk 0:00:07.7]}
49... Qc5 {[%clk 0:00:22.3]} 50. Qh2+ {[%clk 0:00:07.5]} 50... Kg8 {[%clk
0:00:21.5]} 51. Qb8+ {[%clk 0:00:08.4]} 51... Kf7 {[%clk 0:00:21.8]} 52. Qc7+
{[%clk 0:00:08.8]} 52... Qe7 {[%clk 0:00:20.7]} 53. Qxb6 {[%clk 0:00:08.4]}
53... Be4 {[%clk 0:00:19.6]} 54. Bc4+ {[%clk 0:00:07.4]} 54... Bd5 {[%clk
0:00:19.1]} 55. Qxc6 {[%clk 0:00:06.9]} 55... Bxc4 {[%clk 0:00:18.7]} 56. Qxc4+
{[%clk 0:00:07.8]} 56... Kf8 {[%clk 0:00:19.3]} 57. Qc8+ {[%clk 0:00:07.5]}
57... Kf7 {[%clk 0:00:19.6]} 58. Qc4+ {[%clk 0:00:08.2]} 58... Kf8 {[%clk
0:00:20.2]} 59. Qd4 {[%clk 0:00:08.9]} 59... Qe5 {[%clk 0:00:11.8]} 60. Qxe5
{[%clk 0:00:04.8]} 60... fxe5 {[%clk 0:00:12.7]} 61. b4 {[%clk 0:00:05.7]} 61...
Ke7 {[%clk 0:00:13.4]} 62. b5 {[%clk 0:00:05.5]} 62... Kd6 {[%clk 0:00:10]} 63.
c4 {[%clk 0:00:05.8]} 63... e4 {[%clk 0:00:06.6]} 64. Kc3 {[%clk 0:00:05.2]}
64... Ke5 {[%clk 0:00:07.2]} 65. b6 {[%clk 0:00:04.7]} 65... Kf4 {[%clk
0:00:07.8]} 66. b7 {[%clk 0:00:05]} 1-0

[Event "Late-Titled-Tuesday-Blitz-February-27-2024"]
[Site "Chess.com"]
[Date "2024.02.27"]
[Round "7"]
[White "ural58"]
[Black "Charodej1"]
[Result "1-0"]
[WhiteElo "2489"]
[BlackElo "2306"]
[TimeControl "180+1"]
[EndTime "15:17:43 PST"]
[Termination "ural58 won by resignation"]

1. e4 {[%clk 0:02:54.5]} 1... e5 {[%clk 0:02:57.5]} 2. f4 {[%clk 0:02:54.1]}
2... d5 {[%clk 0:02:56.3]} 3. exd5 {[%clk 0:02:53.8]} 3... e4 {[%clk 0:02:56.7]}
4. d3 {[%clk 0:02:53.4]} 4... Qxd5 {[%clk 0:02:53.5]} 5. Qe2 {[%clk 0:02:51.4]}
5... Nf6 {[%clk 0:02:52.8]} 6. Nc3 {[%clk 0:02:51.5]} 6... Bb4 {[%clk
0:02:52.6]} 7. Bd2 {[%clk 0:02:51.8]} 7... Bxc3 {[%clk 0:02:37.1]} 8. Bxc3
{[%clk 0:02:51.6]} 8... Bg4 {[%clk 0:02:36.9]} 9. dxe4 {[%clk 0:02:48.2]} 9...
Qxe4 {[%clk 0:01:51.4]} 10. Qxe4+ {[%clk 0:02:42.3]} 10... Nxe4 {[%clk
0:01:52.3]} 11. Bxg7 {[%clk 0:02:41.1]} 11... Rg8 {[%clk 0:01:52.9]} 12. Be5
{[%clk 0:02:40.8]} 12... Nc6 {[%clk 0:01:43.4]} 13. Nf3 {[%clk 0:02:38.3]} 13...
f6 {[%clk 0:01:31.1]} 14. Bc3 {[%clk 0:02:33.8]} 14... Nxc3 {[%clk 0:01:29.8]}
15. bxc3 {[%clk 0:02:33.5]} 15... Bxf3 {[%clk 0:01:30.3]} 16. gxf3 {[%clk
0:02:33.3]} 16... O-O-O {[%clk 0:01:31]} 17. Bd3 {[%clk 0:02:33]} 17... h6
{[%clk 0:01:30.3]} 18. O-O-O {[%clk 0:02:32.1]} 18... Rg2 {[%clk 0:01:20]} 19.
Rhg1 {[%clk 0:02:15.1]} 19... Rdg8 {[%clk 0:01:13.5]} 20. Rxg2 {[%clk
0:02:10.9]} 20... Rxg2 {[%clk 0:01:14.4]} 21. Bf5+ {[%clk 0:02:09]} 21... Kb8
{[%clk 0:01:12.3]} 22. h3 {[%clk 0:02:06.3]} 22... Rf2 {[%clk 0:01:08.6]} 23.
Bg4 {[%clk 0:02:04.4]} 23... f5 {[%clk 0:01:03.2]} 24. Re1 {[%clk 0:01:49.3]}
24... a6 {[%clk 0:00:46.7]} 25. Bxf5 {[%clk 0:01:48.5]} 25... Rxf3 {[%clk
0:00:47.2]} 26. Re4 {[%clk 0:01:48.6]} 26... Rxc3 {[%clk 0:00:46]} 27. Kd2
{[%clk 0:01:42.5]} 27... Ra3 {[%clk 0:00:43.6]} 28. Be6 {[%clk 0:01:39.1]} 28...
Rg3 {[%clk 0:00:14.9]} 29. Bg4 {[%clk 0:01:39]} 29... h5 {[%clk 0:00:11.7]} 30.
Bxh5 {[%clk 0:01:38.8]} 30... Rxh3 {[%clk 0:00:10.9]} 31. Be8 {[%clk 0:01:38.2]}
31... Rh2+ {[%clk 0:00:07.2]} 32. Kc3 {[%clk 0:01:36.3]} 32... Rh3+ {[%clk
0:00:07.2]} 33. Kb2 {[%clk 0:01:36]} 33... Kc8 {[%clk 0:00:06.8]} 34. f5 {[%clk
0:01:28.3]} 34... Rf3 {[%clk 0:00:05.5]} 35. Bh5 {[%clk 0:01:26.7]} 35... Rf2
{[%clk 0:00:04.5]} 36. Bg4 {[%clk 0:01:22.3]} 36... Kd8 {[%clk 0:00:03.6]} 37.
f6 {[%clk 0:01:21.6]} 37... Rxf6 {[%clk 0:00:03.3]} 38. Bh5 {[%clk 0:01:16.2]}
38... Rd6 {[%clk 0:00:02.9]} 39. Re8+ {[%clk 0:01:15.8]} 39... Kd7 {[%clk
0:00:03]} 40. Rh8 {[%clk 0:01:16.3]} 40... Rd4 {[%clk 0:00:02.5]} 41. Be8+
{[%clk 0:01:15.8]} 41... Kd6 {[%clk 0:00:03]} 42. Rh7 {[%clk 0:01:15.8]} 42...
Kc5 {[%clk 0:00:03.3]} 43. Rxc7 {[%clk 0:01:14.3]} 43... Kb6 {[%clk 0:00:04]}
44. Rh7 {[%clk 0:01:13.3]} 44... Rd8 {[%clk 0:00:04.5]} 45. Bh5 {[%clk
0:01:12.8]} 45... Rd5 {[%clk 0:00:04.3]} 46. Bf3 {[%clk 0:01:12.1]} 46... Re5
{[%clk 0:00:04.9]} 47. a3 {[%clk 0:01:10.8]} 47... Rb5+ {[%clk 0:00:05.3]} 48.
Ka2 {[%clk 0:01:09.8]} 48... Rf5 {[%clk 0:00:06.2]} 49. Be4 {[%clk 0:01:09.8]}
49... Re5 {[%clk 0:00:06.1]} 50. Bd3 {[%clk 0:01:09.7]} 50... Rd5 {[%clk
0:00:06]} 51. Kb3 {[%clk 0:01:09.9]} 51... Rc5 {[%clk 0:00:06]} 52. c4 {[%clk
0:01:09.3]} 52... Rg5 {[%clk 0:00:06.6]} 53. Rh3 {[%clk 0:01:07.6]} 53... a5
{[%clk 0:00:06.1]} 54. Kc3 {[%clk 0:01:07.7]} 54... Rc5 {[%clk 0:00:06.3]} 55.
Be4 {[%clk 0:01:05.3]} 55... Re5 {[%clk 0:00:06.2]} 56. Bd5 {[%clk 0:01:04.9]}
56... Re1 {[%clk 0:00:05.6]} 57. Rh5 {[%clk 0:01:03.3]} 57... Rc1+ {[%clk
0:00:05.5]} 58. Kd2 {[%clk 0:01:03.2]} 58... Ra1 {[%clk 0:00:06]} 59. Rh3 {[%clk
0:00:59]} 59... Ra2+ {[%clk 0:00:06.1]} 60. Kc1 {[%clk 0:00:59]} 60... Ra1+
{[%clk 0:00:05.9]} 61. Kc2 {[%clk 0:00:56.6]} 61... Rg1 {[%clk 0:00:06.3]} 62.
Rh5 {[%clk 0:00:54.5]} 62... Rf1 {[%clk 0:00:05.4]} 63. c5+ {[%clk 0:00:53.2]}
63... Kc7 {[%clk 0:00:05.2]} 64. Rh7+ {[%clk 0:00:52.3]} 64... Kb8 {[%clk
0:00:05.5]} 65. Kb3 {[%clk 0:00:46.1]} 65... Rf2 {[%clk 0:00:06.1]} 66. Ka4
{[%clk 0:00:36.6]} 66... Rf5 {[%clk 0:00:06.3]} 67. Rd7 {[%clk 0:00:33.2]} 67...
Kc8 {[%clk 0:00:05.6]} 68. Be6 {[%clk 0:00:31.5]} 68... Rf4+ {[%clk 0:00:04.2]}
69. Rd4+ {[%clk 0:00:28.4]} 69... Kc7 {[%clk 0:00:02.4]} 70. Rxf4 {[%clk
0:00:28.3]} 1-0

[Event "Late-Titled-Tuesday-Blitz-February-27-2024"]
[Site "Chess.com"]
[Date "2024.02.27"]
[Round "7"]
[White "BardArtem"]
[Black "WindWhistler11"]
[Result "0-1"]
[WhiteElo "2706"]
[BlackElo "2516"]
[TimeControl "180+1"]
[EndTime "15:18:00 PST"]
[Termination "WindWhistler11 won on time"]

1. d4 {[%clk 0:03:00.6]} 1... e6 {[%clk 0:03:00.1]} 2. Nf3 {[%clk 0:02:59]} 2...
Nf6 {[%clk 0:03:00.3]} 3. c4 {[%clk 0:02:59.1]} 3... c5 {[%clk 0:03:00.9]} 4. e3
{[%clk 0:02:57.8]} 4... b6 {[%clk 0:03:00.4]} 5. d5 {[%clk 0:02:55.7]} 5... exd5
{[%clk 0:03:01.3]} 6. cxd5 {[%clk 0:02:56.1]} 6... Bd6 {[%clk 0:03:01.5]} 7. Nc3
{[%clk 0:02:56.6]} 7... O-O {[%clk 0:03:01.9]} 8. Be2 {[%clk 0:02:41.9]} 8...
Ba6 {[%clk 0:03:01.6]} 9. O-O {[%clk 0:02:42.5]} 9... Re8 {[%clk 0:02:59.3]} 10.
Bxa6 {[%clk 0:02:37.1]} 10... Nxa6 {[%clk 0:02:59.1]} 11. Qa4 {[%clk 0:02:38]}
11... Nc7 {[%clk 0:02:50.7]} 12. Rd1 {[%clk 0:02:36.5]} 12... a6 {[%clk
0:02:48.9]} 13. a3 {[%clk 0:02:26.9]} 13... Qe7 {[%clk 0:02:38.2]} 14. Qc2
{[%clk 0:02:23.7]} 14... Nb5 {[%clk 0:02:34.4]} 15. b3 {[%clk 0:02:19.4]} 15...
Be5 {[%clk 0:02:18.1]} 16. Nxe5 {[%clk 0:02:17.5]} 16... Qxe5 {[%clk 0:02:17.1]}
17. Bb2 {[%clk 0:02:18.1]} 17... Ng4 {[%clk 0:02:13.4]} 18. g3 {[%clk
0:02:11.9]} 18... Qh5 {[%clk 0:02:12.1]} 19. h4 {[%clk 0:02:11.3]} 19... Nxc3
{[%clk 0:01:59.1]} 20. Bxc3 {[%clk 0:02:06.8]} 20... Ne5 {[%clk 0:01:31.1]} 21.
Bxe5 {[%clk 0:02:06.3]} 21... Rxe5 {[%clk 0:01:30]} 22. Qc4 {[%clk 0:02:04.4]}
22... Rae8 {[%clk 0:01:29.8]} 23. Qxa6 {[%clk 0:01:57.9]} 23... Qf3 {[%clk
0:01:28.3]} 24. Qf1 {[%clk 0:01:53.4]} 24... Rxd5 {[%clk 0:01:26]} 25. Rxd5
{[%clk 0:01:47.3]} 25... Qxd5 {[%clk 0:01:26.9]} 26. Qc4 {[%clk 0:01:38]} 26...
Qxc4 {[%clk 0:01:13.1]} 27. bxc4 {[%clk 0:01:38.9]} 27... Ra8 {[%clk 0:01:13.5]}
28. a4 {[%clk 0:01:37]} 28... Kf8 {[%clk 0:01:13.4]} 29. Kg2 {[%clk 0:01:32.9]}
29... Ke7 {[%clk 0:01:12.8]} 30. Kf3 {[%clk 0:01:33.4]} 30... Ke6 {[%clk
0:01:11.5]} 31. Ke4 {[%clk 0:01:33.3]} 31... f5+ {[%clk 0:01:10.8]} 32. Kd3
{[%clk 0:01:33.4]} 32... d5 {[%clk 0:01:10.7]} 33. f3 {[%clk 0:01:27.3]} 33...
Kd6 {[%clk 0:01:05.1]} 34. Kc3 {[%clk 0:01:27.3]} 34... Re8 {[%clk 0:01:00.6]}
35. Re1 {[%clk 0:01:24.5]} 35... Ra8 {[%clk 0:01:01]} 36. Ra1 {[%clk 0:01:23.3]}
36... Re8 {[%clk 0:01:01.1]} 37. Re1 {[%clk 0:01:02.2]} 37... Ra8 {[%clk
0:00:58.8]} 38. cxd5 {[%clk 0:01:02.4]} 38... Rxa4 {[%clk 0:00:51.7]} 39. e4
{[%clk 0:01:02.4]} 39... fxe4 {[%clk 0:00:52.6]} 40. fxe4 {[%clk 0:01:03.3]}
40... Ra3+ {[%clk 0:00:52.9]} 41. Kc4 {[%clk 0:01:03.1]} 41... Ra4+ {[%clk
0:00:50.3]} 42. Kb5 {[%clk 0:00:54.5]} 42... Rb4+ {[%clk 0:00:50.3]} 43. Ka6
{[%clk 0:00:54.4]} 43... Ke5 {[%clk 0:00:48.3]} 44. Kb7 {[%clk 0:00:46.4]} 44...
c4 {[%clk 0:00:45.1]} 45. Rd1 {[%clk 0:00:26.2]} 45... c3 {[%clk 0:00:29.3]} 46.
d6 {[%clk 0:00:25.6]} 46... c2 {[%clk 0:00:29.6]} 47. Rd5+ {[%clk 0:00:24.8]}
47... Kxe4 {[%clk 0:00:23.5]} 48. d7 {[%clk 0:00:25.7]} 48... Kxd5 {[%clk
0:00:13]} 49. d8=Q+ {[%clk 0:00:25.1]} 49... Kc4 {[%clk 0:00:13.9]} 50. Qd2
{[%clk 0:00:17.6]} 50... Kb3 {[%clk 0:00:14.2]} 51. Qc1 {[%clk 0:00:11.7]} 51...
Kc3 {[%clk 0:00:11.1]} 52. Qe1+ {[%clk 0:00:04.3]} 52... Kb3 {[%clk 0:00:09.7]}
53. Qc1 {[%clk 0:00:04.8]} 53... Rd4 {[%clk 0:00:08.2]} 54. Qe3+ {[%clk
0:00:04.4]} 54... Kc4 {[%clk 0:00:08.4]} 55. Kxb6 {[%clk 0:00:02.7]} 55... Rd1
{[%clk 0:00:07.8]} 56. Qe4+ {[%clk 0:00:03.1]} 56... Kc3 {[%clk 0:00:08]} 57.
Qc6+ {[%clk 0:00:03.6]} 57... Kd2 {[%clk 0:00:07.4]} 58. Qd5+ {[%clk 0:00:03.3]}
58... Kc1 {[%clk 0:00:06.1]} 59. Qb3 {[%clk 0:00:01.8]} 59... Kd2 {[%clk
0:00:06.6]} 60. Qd5+ {[%clk 0:00:01.6]} 60... Kc1 {[%clk 0:00:06.9]} 61. Qg5+
{[%clk 0:00:02.2]} 61... Rd2 {[%clk 0:00:07]} 62. Kc5 {[%clk 0:00:02.3]} 62...
Kd1 {[%clk 0:00:07.2]} 63. Qg4+ {[%clk 0:00:02.7]} 63... Kc1 {[%clk 0:00:06.5]}
64. Kc4 {[%clk 0:00:02.5]} 64... Kb1 {[%clk 0:00:07.4]} 65. Qe4 {[%clk
0:00:01.9]} 65... Rd1 {[%clk 0:00:04.4]} 0-1

[Event "Late-Titled-Tuesday-Blitz-February-27-2024"]
[Site "Chess.com"]
[Date "2024.02.27"]
[Round "7"]
[White "vi_pranav"]
[Black "Genghis_K"]
[Result "0-1"]
[WhiteElo "3099"]
[BlackElo "2947"]
[TimeControl "180+1"]
[EndTime "15:18:05 PST"]
[Termination "Genghis_K won on time"]

1. d4 {[%clk 0:03:00.9]} 1... Nf6 {[%clk 0:03:00.2]} 2. Nc3 {[%clk 0:03:00.7]}
2... d5 {[%clk 0:03:00.3]} 3. Bf4 {[%clk 0:03:00.9]} 3... c5 {[%clk 0:03:00.8]}
4. e4 {[%clk 0:03:01]} 4... Nxe4 {[%clk 0:03:00.3]} 5. Nxe4 {[%clk 0:03:00.9]}
5... dxe4 {[%clk 0:03:00.9]} 6. dxc5 {[%clk 0:03:01.8]} 6... Qa5+ {[%clk
0:02:59.8]} 7. c3 {[%clk 0:03:01.4]} 7... Qxc5 {[%clk 0:03:00.1]} 8. Qa4+ {[%clk
0:03:02]} 8... Nc6 {[%clk 0:02:56.9]} 9. Qxe4 {[%clk 0:03:02.5]} 9... g6 {[%clk
0:02:57.1]} 10. Nf3 {[%clk 0:02:54.3]} 10... Bg7 {[%clk 0:02:57]} 11. Qe3 {[%clk
0:02:54.7]} 11... Qxe3+ {[%clk 0:02:56]} 12. Bxe3 {[%clk 0:02:55.6]} 12... Bd7
{[%clk 0:02:53.8]} 13. Be2 {[%clk 0:02:56.1]} 13... O-O {[%clk 0:02:51.7]} 14.
O-O {[%clk 0:02:56.6]} 14... Rfd8 {[%clk 0:02:52.2]} 15. Rfd1 {[%clk 0:02:57.1]}
15... Be8 {[%clk 0:02:51.8]} 16. Nd2 {[%clk 0:02:55.5]} 16... Ne5 {[%clk
0:02:50.8]} 17. Nb3 {[%clk 0:02:47.5]} 17... b6 {[%clk 0:02:41.6]} 18. Nd4
{[%clk 0:02:46.9]} 18... Rac8 {[%clk 0:02:40.7]} 19. Ba6 {[%clk 0:02:43.2]}
19... Rc7 {[%clk 0:02:30.1]} 20. h3 {[%clk 0:02:28.3]} 20... Nc4 {[%clk
0:02:24.2]} 21. Nf3 {[%clk 0:01:54.6]} 21... Rxd1+ {[%clk 0:02:01]} 22. Rxd1
{[%clk 0:01:55.5]} 22... Nxe3 {[%clk 0:02:01.5]} 23. Rd8 {[%clk 0:01:54.9]}
23... Nf5 {[%clk 0:01:54.8]} 24. Rxe8+ {[%clk 0:01:46]} 24... Bf8 {[%clk
0:01:55]} 25. Ra8 {[%clk 0:01:42.6]} 25... Nd6 {[%clk 0:01:52.7]} 26. Kf1 {[%clk
0:01:42.4]} 26... Kg7 {[%clk 0:01:47.5]} 27. Bd3 {[%clk 0:01:39.5]} 27... f6
{[%clk 0:01:40.3]} 28. Nd4 {[%clk 0:01:36.9]} 28... Rc8 {[%clk 0:00:37.9]} 29.
Rxa7 {[%clk 0:01:36.8]} 29... f5 {[%clk 0:00:38.6]} 30. Ba6 {[%clk 0:01:16.3]}
30... Rb8 {[%clk 0:00:39.1]} 31. a4 {[%clk 0:01:13.1]} 31... Kf6 {[%clk
0:00:38]} 32. f4 {[%clk 0:01:07.8]} 32... Bh6 {[%clk 0:00:35.5]} 33. g3 {[%clk
0:01:06.2]} 33... g5 {[%clk 0:00:35.7]} 34. fxg5+ {[%clk 0:00:35.2]} 34... Bxg5
{[%clk 0:00:35.7]} 35. h4 {[%clk 0:00:35.8]} 35... Bc1 {[%clk 0:00:31.2]} 36. b4
{[%clk 0:00:35.6]} 36... Be3 {[%clk 0:00:31.2]} 37. Nc6 {[%clk 0:00:30.7]} 37...
Re8 {[%clk 0:00:31.2]} 38. Bd3 {[%clk 0:00:20.8]} 38... Rg8 {[%clk 0:00:22]} 39.
Nxe7 {[%clk 0:00:16.4]} 39... Rxg3 {[%clk 0:00:22.3]} 40. Nd5+ {[%clk
0:00:16.9]} 40... Ke5 {[%clk 0:00:22.2]} 41. Nxe3 {[%clk 0:00:12.5]} 41... Rxe3
{[%clk 0:00:23.1]} 42. Re7+ {[%clk 0:00:12.7]} 42... Kf4 {[%clk 0:00:21.4]} 43.
Rxe3 {[%clk 0:00:11.8]} 43... Kxe3 {[%clk 0:00:22.3]} 44. Ba6 {[%clk 0:00:12.4]}
44... Ne4 {[%clk 0:00:18]} 45. c4 {[%clk 0:00:06.8]} 45... f4 {[%clk 0:00:16.1]}
46. c5 {[%clk 0:00:06.3]} 46... bxc5 {[%clk 0:00:12.2]} 47. bxc5 {[%clk
0:00:03.8]} 47... Nxc5 {[%clk 0:00:13.1]} 48. Bb5 {[%clk 0:00:04.5]} 48... Nb3
{[%clk 0:00:13.7]} 49. Bc6 {[%clk 0:00:03.2]} 49... h5 {[%clk 0:00:11]} 50. Kg2
{[%clk 0:00:03.4]} 50... Nd4 {[%clk 0:00:07.5]} 51. Bb7 {[%clk 0:00:01.8]} 51...
f3+ {[%clk 0:00:08.1]} 52. Kf1 {[%clk 0:00:02.3]} 52... f2 {[%clk 0:00:06.9]}
53. a5 {[%clk 0:00:02.6]} 53... Nb3 {[%clk 0:00:07.5]} 54. Ba6 {[%clk
0:00:01.8]} 54... Nxa5 {[%clk 0:00:07.1]} 55. Be2 {[%clk 0:00:02.4]} 55... Nb3
{[%clk 0:00:06.6]} 56. Ba6 {[%clk 0:00:02.9]} 56... Nd2+ {[%clk 0:00:07]} 57.
Kg2 {[%clk 0:00:03.4]} 57... Nf3 {[%clk 0:00:06.8]} 58. Kg3 {[%clk 0:00:02.3]}
58... Ne5 {[%clk 0:00:04.3]} 59. Kg2 {[%clk 0:00:02.4]} 59... Ng6 {[%clk
0:00:04.5]} 60. Kg3 {[%clk 0:00:02.3]} 60... Ne7 {[%clk 0:00:05.3]} 61. Kg2
{[%clk 0:00:01.8]} 61... Nf5 {[%clk 0:00:06]} 62. Kh3 {[%clk 0:00:02.2]} 62...
Nd4 {[%clk 0:00:06.2]} 63. Kg2 {[%clk 0:00:02.4]} 63... Ne2 {[%clk 0:00:06.4]}
64. Kf1 {[%clk 0:00:03]} 64... Nf4 {[%clk 0:00:04.4]} 65. Bb5 {[%clk 0:00:03.2]}
65... Kf3 {[%clk 0:00:04.5]} 66. Be8 {[%clk 0:00:03.1]} 66... Kg3 {[%clk
0:00:05.1]} 67. Bf7 {[%clk 0:00:02.8]} 67... Ng2 {[%clk 0:00:05.1]} 68. Ke2
{[%clk 0:00:01.3]} 68... Ne3 {[%clk 0:00:05.4]} 0-1